Workbook

Sheet MYP, MSS
B1: Olli Saukkoranta | E1: 16.9.1998 Vaasa
B2: YKKÖSPESIS | E2: Runkosarja | L2: Runkosarja TOP-10 | Q2: Jatkosarjat | X2: SUOMENSARJA | AA2: Runkosarja | AH2: Runkosarja TOP-10 | AM2: Jatkosarjat
B3: Vuosi | C3: Sija | D3: Seura | E3: OTT | F3: KUN | G3: LÖI | H3: TOI | I3: KL | J3: KL-% | L3: LÖI | M3: TOI | N3: L+T | O3: KL | Q3: OTT | R3: KUN | S3: LÖI | T3: TOI | U3: KL | V3: KL-% | X3: Vuosi | Y3: Sija | Z3: Seura | AA3: OTT | AB3: KUN | AC3: LÖI | AD3: TOI | AE3: KL | AF3: KL-% | AH3: LÖI | AI3: TOI | AJ3: L+T | AK3: KL | AM3: OTT | AN3: KUN | AO3: LÖI | AP3: TOI | AQ3: KL | AR3: KL-%
X4: 2014 | Y4: 2. | Z4: VäVi | AA4: 1 | AB4: 0 | AC4: 2 | AD4: 0 | AE4: 3 | AF4: 75.0 % | AG4: 4
X5: 2015 | Y5: 2. | Z5: VM | AA5: 15 | AB5: 0 | AC5: 17 | AD5: 1 | AE5: 23 | AF5: 43.4 % | AG5: 53
X6: 2016 | Y6: 9. | Z6: KoU 2 | AA6: 15 | AB6: 0 | AC6: 13 | AD6: 1 | AE6: 40 | AF6: 55.6 % | AG6: 72
B7: 2017 | C7: 11. | D7: VäVi | E7: 1 | F7: 0 | G7: 0 | H7: 0 | I7: 0 | J7: 0.0 % | K7: 2 | Q7: 1 | R7: 0 | S7: 1 | T7: 0 | U7: 1 | V7: 33.3 % | W7: 3 | X7: 2017 | Y7: 5. | Z7: YKV | AA7: 9 | AB7: 1 | AC7: 16 | AD7: 4 | AE7: 25 | AF7: 49.0 % | AG7: 51
X8: 2018 | Y8: 7. | Z8: VM | AA8: 13 | AB8: 0 | AC8: 12 | AD8: 3 | AE8: 28 | AF8: 47.5 % | AG8: =PRODUCT(AE8/AF8) -> 59
X10: 2022 | Y10: 3. | Z10: VM Jun | AA10: 10 | AB10: 0 | AC10: 27 | AD10: 0 | AE10: 32 | AF10: 59.3 % | AG10: 54 | AH10: 7.
X11: 2023 | Y11: 6. | Z11: VM Jun | AA11: 8 | AB11: 0 | AC11: 8 | AD11: 0 | AE11: 10 | AF11: 32.3 % | AG11: 31
B12: YHTEENSÄ | E12: =SUM(E4:E11) -> 1 | F12: =SUM(F4:F11) -> 0 | G12: =SUM(G4:G11) -> 0 | H12: =SUM(H4:H11) -> 0 | I12: =SUM(I4:I11) -> 0 | J12: 0.0 % | K12: =SUM(K4:K11) -> 2 | Q12: =SUM(Q4:Q11) -> 1 | R12: =SUM(R4:R11) -> 0 | S12: =SUM(S4:S11) -> 1 | T12: =SUM(T4:T11) -> 0 | U12: =SUM(U4:U11) -> 1 | V12: 0.0 % | W12: =SUM(W4:W11) -> 3 | X12: YHTEENSÄ | AA12: =SUM(AA4:AA11) -> 71 | AB12: =SUM(AB4:AB11) -> 1 | AC12: =SUM(AC4:AC11) -> 95 | AD12: =SUM(AD4:AD11) -> 9 | AE12: =SUM(AE4:AE11) -> 161 | AF12: =PRODUCT(AE12/AG12) -> 49.7 % | AG12: =SUM(AG4:AG11) -> 324.0094837 | AM12: =SUM(AM4:AM11) -> 0 | AN12: =SUM(AN4:AN11) -> 0 | AO12: =SUM(AO4:AO11) -> 0 | AP12: =SUM(AP4:AP11) -> 0 | AQ12: =SUM(AQ4:AQ11) -> 0 | AR12: 0.0 % | AS12: =SUM(AS4:AS11) -> 0
B14: KAIKKI OTTELUT | E14: OTT | F14: KUN | G14: LÖI | H14: TOI | I14: KL | J14: KL-% | L14: ka/L | M14: ka/T | N14: ka/l+t | O14: ka/kl | R14: Seurat | T14: VM Jun = Vaasan Mailan Juniorit (1993), kasvattajaseura
B15: SUPERPESIS | E15: 0 | F15: 0 | G15: 0 | H15: 0 | I15: 0 | J15: 0.0 % | L15: 0.00 | M15: 0.00 | N15: 0.00 | O15: 0.00 | T15: VäVi = Vähänkyrön Viesti (1938)
B16: YKKÖSPESIS | E16: =PRODUCT(E12+Q12) -> 2 | F16: =PRODUCT(F12+R12) -> 0 | G16: =PRODUCT(G12+S12) -> 1 | H16: =PRODUCT(H12+T12) -> 0 | I16: =PRODUCT(I12+U12) -> 1 | J16: =PRODUCT(I16/K16) -> 20.0 % | K16: =PRODUCT(K12+W12) -> 5 | L16: =PRODUCT((F16+G16)/E16) -> 0.50 | M16: =PRODUCT(H16/E16) -> 0.00 | N16: =PRODUCT((F16+G16+H16)/E16) -> 0.50 | O16: =PRODUCT(I16/E16) -> 0.50 | T16: YKV = Ylistaron Kilpa-Veljet (1945)
B17: SUOMENSARJA | E17: =PRODUCT(AA12+AM12) -> 71 | F17: =PRODUCT(AB12+AN12) -> 1 | G17: =PRODUCT(AC12+AO12) -> 95 | H17: =PRODUCT(AD12+AP12) -> 9 | I17: =PRODUCT(AE12+AQ12) -> 161 | J17: =PRODUCT(I17/K17) -> 49.7 % | K17: =PRODUCT(AG12+AS12) -> 324.0094837 | L17: =PRODUCT((F17+G17)/E17) -> 1.35 | M17: =PRODUCT(H17/E17) -> 0.13 | N17: =PRODUCT((F17+G17+H17)/E17) -> 1.48 | O17: =PRODUCT(I17/E17) -> 2.27
B18: YHTEENSÄ | E18: =SUM(E15:E17) -> 73 | F18: =SUM(F15:F17) -> 1 | G18: 96 | H18: 9 | I18: 162 | J18: =PRODUCT(I18/K18) -> 49.2 % | K18: =SUM(K15:K17) -> 329.0094837 | L18: =PRODUCT((F18+G18)/E18) -> 1.33 | M18: =PRODUCT(H18/E18) -> 0.12 | N18: =PRODUCT((F18+G18+H18)/E18) -> 1.45 | O18: =PRODUCT(I18/E18) -> 2.22
